[Event "7th Sharjah Masters 2024"]
[Site "Sharjah"]
[Date "2024.05.16"]
[Round "3.10"]
[White "Sankalp Gupta"]
[Black "Yakubboev, Nodirbek"]
[Result "1-0"]
[ECO "A17"]
[WhiteElo "2532"]
[BlackElo "2665"]
[Annotator "RC"]
[PlyCount "165"]
[EventDate "2024.05.13"]
[EventType "swiss"]
[EventCountry "UAE"]
[SourceTitle "playchess.com"]
[Source "ChessBase"]
[SourceQuality "1"]
[TimeControl "5400+30"]

1. Nf3 {[%emt 0:00:30]} d5 {[%emt 0:01:09]} 2. e3 {[%emt 0:00:09]} Nf6 {[%emt 0:00:38]} 3. c4 {[%emt 0:00:09]} e6 {[%emt 0:00:13]} 4. Nc3 {[%emt 0:00:03]} Bd6 {[%emt 0:00:10]} 5. b3 {[%emt 0:00:13]} O-O {[%emt 0:00:53]} 6. Bb2 {[%emt 0:00:11]} Nc6 {[%emt 0:00:41]} 7. d4 {[%emt 0:09:25]} dxc4 {[%emt 0:01:12]} 8. bxc4 {[%emt 0:14:30]} e5 {[%emt 0:00:39]} 9. d5 {[%emt 0:00:36]} Na5 {[%emt 0:03:11]} 10. Be2 {[%emt 0:03:48]} b6 {[%emt 0:04:36]} 11. O-O {[%emt 0:02:39]} Re8 {[%emt 0:18:17]} 12. Nd2 {[%emt 0:03:48]} Nd7 {[%emt 0:02:56]} 13. Qc2 {[%emt 0:04:06]} Nc5 {[%emt 0:02:43]} 14. e4 {[%emt 0:01:51]} a6 {[%emt 0:06:59]} 15. Nd1 {[%emt 0:00:05]} Bd7 {[%emt 0:06:36]} 16. Rc1 {[%emt 0:02:20]} c6 {[%emt 0:08:38]} 17. Ne3 {[%emt 0:02:29]} Rc8 {[%emt 0:01:58]} 18. Qb1 {[%emt 0:02:51]} Na4 {[%emt 0:07:23]} 19. Ba1 {[%emt 0:00:03]} Bc5 {[%emt 0:01:10]} 20. Nb3 {[%emt 0:11:09]} Bxe3 {[%emt 0:00:38]} 21. fxe3 {[%emt 0:00:02]} Nb7 {[%emt 0:00:15]} 22. Rcd1 {[%emt 0:03:29]} c5 {[%emt 0:03:28]} 23. Nd2 {[%emt 0:05:15]} Nd6 {[%emt 0:02:28]} 24. Nf3 {[%emt 0:00:03]} f6 {[%emt 0:01:04]} 25. Nh4 {[%emt 0:00:04]} g6 {[%emt 0:02:26]} 26. Nf3 {[%emt 0:04:12]} b5 {[%emt 0:01:42]} 27. Nd2 {[%emt 0:00:03]} Qe7 {[%emt 0:05:14]} 28. Rf2 {[%emt 0:02:15]} Nb6 {[%emt 0:02:46]} 29. Rdf1 {[%emt 0:00:40]} Rf8 {[%emt 0:00:07]} 30. Qc2 {[%emt 0:00:37]} b4 {[%emt 0:02:55]} 31. Nb3 {[%emt 0:03:03]} Nb7 {[%emt 0:00:08]} 32. Bd3 {[%emt 0:02:42]} a5 {[%emt 0:00:35]} 33. Bb2 {[%emt 0:00:26]} a4 {[%emt 0:07:28]} 34. Nd2 {[%emt 0:00:03]} a3 {[%emt 0:00:42]} 35. Ba1 {[%emt 0:00:02]} Ba4 {[%emt 0:00:39]} 36. Nb3 {[%emt 0:02:54]} Nd6 {[%emt 0:01:13]} 37. h3 {[%emt 0:01:06]} Rf7 {[%emt 0:00:42]} 38. Qc1 {[%emt 0:00:21]} Bxb3 {[%emt 0:00:44]} 39. axb3 {[%emt 0:00:01]} Nd7 {[%emt 0:00:29]} 40. Qb1 {[%emt 0:05:33]} h5 {[%emt 0:01:18]} 41. Bc2 {[%emt 0:00:16]} Rh7 {[%emt 0:00:51]} 42. Bd3 {[%emt 0:02:14]} Rf8 {[%emt 0:00:08]} 43. Bc2 {[%emt 0:00:05]} Rff7 {[%emt 0:00:07]} 44. Bd3 {[%emt 0:01:00]} Kf8 {[%emt 0:00:09]} 45. Bc2 {[%emt 0:00:49]} Ke8 {[%emt 0:00:05]} 46. Bd3 {[%emt 0:00:04]} Kd8 {[%emt 0:00:07]} 47. Bc2 {[%emt 0:00:05]} Kc7 {[%emt 0:00:26]} 48. Bd3 {[%emt 0:00:01]} Qf8 {[%emt 0:00:35]} 49. Bc2 {[%emt 0:04:52]} Qh6 {[%emt 0:00:07]} 50. Qe1 {[%emt 0:00:04]} Qg5 {[%emt 0:00:31]} 51. Rf3 {[%emt 0:00:19]} h4 {[%emt 0:00:35]} 52. Kh2 {[%emt 0:04:27]} Rf8 {[%emt 0:00:38]} 53. Rg1 {[%emt 0:01:04]} Qh6 {[%emt 0:01:38]} 54. Rgf1 {[%emt 0:01:46]} Rhf7 {[%emt 0:00:12]} 55. R3f2 {[%emt 0:01:04]} Qg5 {[%emt 0:00:42]} 56. Rf3 {[%emt 0:00:02]} f5 {[%emt 0:02:13]} 57. exf5 {[%emt 0:02:58]} Nxf5 {[%emt 0:00:45]} 58. Bxf5 {[%emt 0:00:02]} Rxf5 {[%emt 0:00:08]} 59. d6+ {[%emt 0:00:38]} Kxd6 {[%emt 0:01:49]} 60. Qd2+ {[%emt 0:00:55]} Kc7 {[%emt 0:00:01]} 61. Rd1 {[%emt 0:00:11]} Qe7 {[%emt 0:00:10]} 62. Rxf5 {[%emt 0:00:35]} gxf5 {[%emt 0:00:21]} 63. Qd5 {[%emt 0:00:04]} Re8 {[%emt 0:00:59]} 64. Qf3 {[%emt 0:00:33]} Qe6 {[%emt 0:00:24]} 65. Qh5 {[%emt 0:01:00]} Nf6 {[%emt 0:01:06]} 66. Qxh4 {[%emt 0:00:02]} Rd8 {[%emt 0:00:27]} 67. Rf1 {[%emt 0:00:16]} Ne4 {[%emt 0:00:29]} 68. Qh7+ {[%emt 0:00:19]} Kb6 {[%emt 0:00:58]} 69. Rxf5 {[%emt 0:00:36]} Rd7 {[%emt 0:00:18]} 70. Qh5 {[%emt 0:00:07]} Nc3 {[%emt 0:00:42]} 71. Rg5 {[%emt 0:01:24]} Qc6 {[%emt 0:00:25]} 72. Qe8 {[%emt 0:00:46]} Qc7 {[%emt 0:00:30]} 73. h4 {[%emt 0:02:11]} e4+ {[%emt 0:00:01]} 74. Kh3 {[%emt 0:00:01]} Rd8 {[%emt 0:00:15]} 75. Qe6+ {[%emt 0:02:32]} Ka7 {[%emt 0:01:17]} 76. Rf5 {[%emt 0:00:01]} Rd6 {[%emt 0:00:17]} 77. Qe5 {[%emt 0:00:23]} a2 {[%emt 0:00:46]} 78. Rf2 {[%emt 0:00:42]} Kb6 {[%emt 0:00:32]} 79. Bxc3 {[%emt 0:00:18]} bxc3 {[%emt 0:00:02]} 80. Rxa2 {[%emt 0:00:01]} Rd2 {[%emt 0:01:07]} 81. Ra6+ {[%emt 0:00:44]} Kxa6 {[%emt 0:00:12]} 82. Qxc7 {[%emt 0:00:01]} c2 {[%emt 0:00:09]} 83. Qc6+ {[%emt 0:00:01]} 1-0

[Event "7th Sharjah Masters 2024"]
[Site "Sharjah"]
[Date "2024.05.16"]
[Round "3.11"]
[White "Daneshvar, Bardiya"]
[Black "Ter-Sahakyan, Samvel"]
[Result "1/2-1/2"]
[ECO "D38"]
[WhiteElo "2582"]
[BlackElo "2652"]
[Annotator "TA"]
[PlyCount "46"]
[EventDate "2024.05.13"]
[EventType "swiss"]
[EventCountry "UAE"]
[SourceTitle "playchess.com"]
[Source "ChessBase"]
[SourceQuality "1"]
[TimeControl "5400+30"]

{[%evp 12,46,23,29,20,21,26,28,18,14,21,27,16,31,19,-29,-21,-28,-34,-37,-29,-33,-28,-37,0,3,19,6,8,-7,15,15,14,8,15,7,12]} 1. c4 {[%emt 0:00:03]} e6 {[%emt 0:01:06]} 2. Nc3 {[%emt 0:00:14]} d5 {[%emt 0:00:06]} 3. d4 {[%emt 0:00:08]} Nf6 {[%emt 0:00:04]} 4. cxd5 {[%emt 0:00:06]} exd5 {[%emt 0:00:05]} 5. Bg5 {[%emt 0:00:18]} Bb4 {[%emt 0:00:22]} 6. Nf3 {[%emt 0:01:56]} h6 {[%emt 0:01:08]} 7. Bh4 {[%emt 0:00:14]} Bf5 {[%emt 0:00:47]} 8. Qa4+ {[%emt 0:02:30]} Nc6 {[%emt 0:00:06]} 9. e3 {[%emt 0:00:03]} g5 {[%emt 0:07:38] White has an edge.} 10. Bg3 {[%emt 0:00:07]} O-O {[%emt 0:04:10]} 11. Bb5 {[%emt 0:02:19]} Bxc3+ {[%emt 0:02:18]} 12. bxc3 {[%emt 0:00:05]} Ne7 {[%emt 0:00:11]} 13. Qa3 {[%emt 0:07:50]} (13. Nd2 $142) 13... Ne4 $11 {[%emt 0:13:48]} 14. Nd2 {[%emt 1:21:37]} Nxd2 {[%emt 0:02:44]} 15. Kxd2 {[%emt 0:00:00]} Bg6 {[%emt 0:00:04]} 16. h3 {[%emt 0:00:00]} Nf5 {[%emt 0:14:07]} 17. Be5 {[%emt 0:00:00]} Nd6 {[%emt 0:09:13]} 18. Bxd6 {[%emt 0:00:00] The position is equal.} cxd6 {[%emt 0:00:29]} 19. Qb3 {[%emt 0:00:00]} Qf6 $132 {[%emt 0:05:13][%mdl 2048] Black puts up resistance} 20. f3 {[%emt 0:00:00]} Qe6 {[%emt 0:02:56]} 21. c4 {[%emt 0:00:00]} dxc4 {[%emt 0:07:28]} 22. Bxc4 {[%emt 0:00:00]} Qe7 {[%emt 0:00:36]} 23. Bd5 {[%emt 0:00:00]} Rac8 {[%emt 0:03:27] Dodges Rhc1.   Weighted Error Value: White=0.05 (flawless) /Black=0.05 (flawless) .  Mistake:       	White=1     	---        Inaccurate:     	---       	Black=1      OK:         	White=8     	Black=11     Best:        	White=1     	Black=1} 1/2-1/2

[Event "7th Sharjah Masters 2024"]
[Site "Sharjah"]
[Date "2024.05.16"]
[Round "3.12"]
[White "Nguyen, Thai Dai Van"]
[Black "Siddharth, Jagadeesh"]
[Result "1/2-1/2"]
[ECO "C13"]
[WhiteElo "2650"]
[BlackElo "2512"]
[Annotator "TA"]
[PlyCount "51"]
[EventDate "2024.05.13"]
[EventType "swiss"]
[EventCountry "UAE"]
[SourceTitle "playchess.com"]
[Source "ChessBase"]
[SourceQuality "1"]
[TimeControl "5400+30"]

{[%evp 12,51,28,29,16,10,14,16,27,25,11,18,20,25,21,8,16,32,27,14,26,12,11,18,11,26,18,63,31,30,35,37,51,34,38,52,41,0,0,0,0,0]} 1. e4 {[%emt 1:31:00]} e6 {[%emt 1:31:00]} 2. d4 {[%emt 0:00:30]} d5 {[%emt 0:00:30]} 3. Nc3 {[%emt 0:00:30]} Nf6 {[%emt 0:00:30]} 4. Bg5 {[%emt 0:00:30]} dxe4 {[%emt 0:00:30]} 5. Nxe4 {[%emt 0:00:30]} Nbd7 {[%emt 0:00:30]} 6. Nf3 {[%emt 0:00:30]} h6 {[%emt 0:00:30]} 7. Bxf6 {[%emt 0:00:30]} Nxf6 {[%emt 0:00:30]} 8. Bd3 {[%emt 0:00:30][%cal Bf1d3,Bd3e4,Be4b7][%mdl 32]} Nxe4 {[%emt 0:00:30]} 9. Bxe4 {[%emt 0:00:30]} c5 {[%emt 0:00:30]} 10. Qe2 {[%emt 0:00:30]} Qa5+ {[%emt 0:00:30]} 11. c3 {[%emt 0:00:30]} Be7 {[%emt 0:00:30]} 12. O-O-O {[%emt 0:00:30]} cxd4 {[%emt 0:00:30]} 13. Nxd4 {[%emt 0:00:30]} Bd7 {[%emt 0:00:30] Prevents Nc6.} 14. Bxb7 {[%emt 0:00:30]} Rb8 {[%emt 0:00:30] Black is weak on the light squares} 15. Qa6 {[%emt 0:00:30]} Qc7 {[%emt 0:00:30]} 16. Bc6 {[%emt 0:00:30] And now Bxd7+ would win. Active counter play!} Rb6 {[%emt 0:00:30]} 17. Bxd7+ {[%emt 0:00:30]} Qxd7 {[%emt 0:00:30]} 18. Qc4 {[%emt 0:00:30][%cal Od4f5] Threatens to win with Nf5!} O-O {[%emt 0:00:30]} 19. Nb3 {[%emt 0:00:30]} Qb7 {[%emt 0:00:30]} 20. f3 {[%emt 0:00:30][%cal Bf2f3,Bf3e4,Be4e5][%mdl 32]} Bf6 {[%emt 0:00:30]} 21. Kb1 {[%emt 0:00:30]} Rc8 {[%emt 0:00:30]} 22. Qe4 {[%emt 0:00:30]} Qxe4+ {[%emt 0:00:30]} 23. fxe4 {[%emt 0:00:30]} a5 $1 {[%emt 0:00:30][%cal Ba7a5,Ba5a4][%mdl 32]} 24. Kc2 {[%emt 0:00:30][%cal Od1d3]} a4 {[%emt 0:00:30][%cal Oc8b8] [#] ...Rcb8! is the strong threat.} 25. Nd4 {[%emt 0:00:30]} Rb4 {[%emt 0:00:30]} 26. e5 {[%emt 0:00:30] Weighted Error Value: White=0.04 (flawless) /Black=0.01 (flawless) .  Inaccurate:     	White=1     	---        OK:         	White=9     	Black=7      Best:        	White=2     	Black=2      Strong:       	---       	Black=1} 1/2-1/2

[Event "7th Sharjah Masters 2024"]
[Site "Sharjah"]
[Date "2024.05.16"]
[Round "3.13"]
[White "Erigaisi Arjun"]
[Black "Kacharava, Nikolozi"]
[Result "1-0"]
[ECO "D27"]
[WhiteElo "2762"]
[BlackElo "2527"]
[Annotator "TA"]
[PlyCount "87"]
[EventDate "2024.05.13"]
[EventType "swiss"]
[EventCountry "UAE"]
[SourceTitle "playchess.com"]
[Source "ChessBase"]
[SourceQuality "1"]
[TimeControl "5400+30"]

{[%evp 18,87,31,19,26,27,25,33,30,29,29,39,35,19,23,22,26,22,19,1,37,51,33,31,84,93,93,52,73,67,135,127,129,139,142,129,137,46,141,152,144,136,131,145,133,139,294,298,254,150,281,268,321,308,321,318,446,448,453,304,275,332,327,310,324,333,295,330,408,408,642,632]} 1. d4 {[%emt 0:04:27]} d5 {[%emt 0:00:28]} 2. c4 {[%emt 0:00:06]} dxc4 {[%emt 0:01:04]} 3. Nf3 {[%emt 0:00:07]} Nf6 {[%emt 0:00:20]} 4. e3 {[%emt 0:00:06]} e6 {[%emt 0:00:29]} 5. Bxc4 {[%emt 0:00:07]} c5 {[%emt 0:00:37]} 6. O-O {[%emt 0:00:08]} a6 {[%emt 0:00:40]} 7. Be2 {[%emt 0:00:25] 7.b3 is setting a new trend. D27: Queen's Gambit Accepted: Classical main line: 7 e4!? and 7 a4.} Nc6 {[%emt 0:03:22]} 8. dxc5 {[%emt 0:00:30]} Bxc5 {[%emt 0:01:17]} 9. Nbd2 $5 {[%emt 0:01:21][%mdl 4] Exploring less charted territory.} O-O {[%emt 0:01:59]} 10. a3 {[%emt 0:00:06]} Be7 $146 {[%emt 0:06:25]} ({Predecessor:} 10... Qe7 11. b4 Ba7 12. Nc4 Rd8 13. Qb3 e5 14. Qb2 Bg4 15. h3 Bxf3 16. Bxf3 e4 {0-1 Comellas Blanchart,J (2034)-Kostov,D (2260) Sitges Sunway op 9th 2022 (3)}) 11. b4 {[%emt 0:06:34]} Nd5 {[%emt 0:08:01]} 12. Bb2 {[%emt 0:01:44]} Bf6 {[%emt 0:00:49]} 13. Qc2 {[%emt 0:13:46]} Bd7 {[%emt 0:05:31]} 14. Ne4 {[%emt 0:02:18]} Bxb2 {[%emt 0:01:21]} 15. Qxb2 {[%emt 0:00:05]} Qe7 {[%emt 0:02:11]} 16. Nc5 {[%emt 0:03:02]} Rfd8 {[%emt 0:09:27]} 17. Nxd7 {[%emt 0:00:42]} (17. Nxb7 $2 {loses.} Rdb8 18. Rfd1 (18. Nc5 $2 Qxc5 19. Rac1 Qe7 $19) 18... Rxb7 $19) 17... Rxd7 {[%emt 0:01:16]} 18. Nd2 {[%emt 0:03:52]} Rad8 {[%emt 0:07:34]} 19. Nb3 {[%emt 0:00:45]} Nb6 {[%emt 0:09:35]} 20. Rfc1 {[%emt 0:04:10]} e5 {[%emt 0:07:30]} (20... g6 $14) 21. h3 $16 {[%emt 0:13:30]} Rd6 {[%emt 0:03:28]} 22. Rc2 {[%emt 0:05:00]} e4 {[%emt 0:01:56]} 23. Nc5 {[%emt 0:02:47]} f5 {[%emt 0:05:54]} (23... Nd5 $14) 24. b5 $16 {[%emt 0:02:39]} axb5 {[%emt 0:02:46]} 25. Qxb5 {[%emt 0:00:23]} Na7 {[%emt 0:03:57]} 26. Qa5 {[%emt 0:05:10]} Nac8 {[%emt 0:02:06]} 27. Nb3 {[%emt 0:05:26]} ({White should try} 27. Rac1 $1 $16) 27... Qf6 {[%emt 0:01:40]} (27... Nd5 $14) 28. Rac1 $1 $16 {[%emt 0:00:49]} Ne7 {[%emt 0:03:34]} 29. Nc5 {[%emt 0:01:50]} Ra8 {[%emt 0:04:02]} 30. Qb4 {[%emt 0:01:52]} Ned5 {[%emt 0:01:09] [#]} 31. Qb5 $1 {[%emt 0:01:29]} Qf7 $2 {[%emt 0:01:23]} (31... Qe7 $16 32. a4 Nc7 33. Qb3+ Ncd5) 32. a4 $18 {[%emt 0:00:41]} Nc7 {[%emt 0:00:22]} 33. Qb4 {[%emt 0:03:59]} (33. Qb1 $18 Ncd5 34. a5) 33... Nbd5 {[%emt 0:01:32] [#]} (33... Ncd5 $16 34. Qb5 Nc7) 34. Qa3 $1 $18 {[%emt 0:01:05]} (34. Qxb7 Rb6 $17) 34... b5 {[%emt 0:01:55]} 35. Nxe4 $1 {[%emt 0:00:25]} (35. Bxb5 $2 {perishes.} Nxb5 36. Qa2 Nbc7 $19) 35... Rg6 {[%emt 0:00:41]} 36. Nc5 {[%emt 0:00:45]} Kh8 {[%emt 0:01:31]} (36... bxa4 {was called for.} 37. Nxa4 Qe8 38. Rxc7 Nxc7) 37. Nd3 {[%emt 0:02:00]} ({Worse is} 37. Bxb5 Nxb5 38. Qb3 Nbc7 $15) 37... Rxa4 {[%emt 0:00:28]} 38. Ne5 {[%emt 0:00:28]} Rxa3 {[%emt 0:00:29]} 39. Nxf7+ {[%emt 0:00:05]} Kg8 {[%emt 0:00:02]} 40. Rxc7 {[%emt 0:00:07]} Nxc7 {[%emt 0:00:09]} 41. Rxc7 {[%emt 0:00:04]} Rb6 {[%emt 0:01:03]} 42. Ne5 {[%emt 0:00:30]} Ra8 {[%emt 0:00:56]} 43. Bf3 {[%emt 0:01:04]} Rf8 {[%emt 0:00:30]} (43... Ra1+ $142 44. Kh2 Rb8) 44. Nd7 {[%emt 0:00:27]} 1-0

[Event "7th Sharjah Masters 2024"]
[Site "Sharjah"]
[Date "2024.05.16"]
[Round "3.14"]
[White "Safarli, Eltaj"]
[Black "Radjabov, Teimour"]
[Result "1/2-1/2"]
[ECO "C42"]
[WhiteElo "2597"]
[BlackElo "2723"]
[Annotator "TA"]
[PlyCount "54"]
[EventDate "2024.05.13"]
[EventType "swiss"]
[EventCountry "UAE"]
[SourceTitle "playchess.com"]
[Source "ChessBase"]
[SourceQuality "1"]
[TimeControl "5400+30"]

{[%evp 21,54,12,16,18,23,27,18,15,16,15,18,0,9,0,9,0,0,-15,0,0,0,0,0,0,0,0,0,0,0,-8,-3,-2,-8,-6,-2]} 1. e4 {[%emt 0:00:05]} e5 {[%emt 0:00:09]} 2. Nf3 {[%emt 0:00:06]} Nf6 {[%emt 0:00:10]} 3. Nxe5 {[%emt 0:00:14]} d6 {[%emt 0:00:13]} 4. Nf3 {[%emt 0:00:07]} Nxe4 {[%emt 0:00:06]} 5. d4 {[%emt 0:00:12]} d5 {[%emt 0:00:12]} 6. Bd3 {[%emt 0:00:31]} Bd6 {[%emt 0:00:49]} 7. O-O {[%emt 0:00:09]} O-O {[%emt 0:00:17]} 8. c4 {[%emt 0:00:30]} c6 {[%emt 0:00:12]} 9. Nc3 {[%emt 0:00:07]} Nxc3 {[%emt 0:00:23]} 10. bxc3 {[%emt 0:00:06]} dxc4 {[%emt 0:00:30]} 11. Bxc4 {[%emt 0:00:06]} Bf5 {[%emt 0:00:51]} 12. Bg5 {[%emt 0:00:23]} Qa5 {[%emt 0:01:37]} 13. Nh4 {[%emt 0:01:08]} Be6 {[%emt 0:00:36]} 14. Bxe6 {[%emt 0:00:07] [#] Bf5 is the strong threat. The position is equal.} Qxg5 {[%emt 0:00:02]} 15. Nf3 {[%emt 0:00:08]} Qa5 {[%emt 0:01:04]} 16. Bh3 {[%emt 0:00:32]} Qxc3 {[%emt 0:03:42]} 17. Rb1 {[%emt 0:02:58][%cal Ba1b1,Bb1b3,Bb3d3][%mdl 32]} b6 {[%emt 0:01:00]} 18. Rb3 {[%emt 0:00:09]} Qa5 {[%emt 0:00:13]} 19. d5 {[%emt 0:00:29]} cxd5 {[%emt 0:00:40][%cal Ob8a6]} (19... Qxd5 $2 20. Rd3 Qxa2 21. Rxd6 $18) 20. Ng5 $1 {[%emt 0:00:49]} g6 {[%emt 0:00:28][%cal Ob8a6] Wards off Qh5} (20... Qxa2 $2 {too greedy.} 21. Nxf7 Rxf7 22. Be6 $18) 21. Rd3 {[%emt 0:00:32]} Nc6 {[%emt 0:02:58][%cal Oa8d8]} ({But not} 21... Qxa2 $6 22. Rf3 Nc6 23. Rxf7 $16) 22. Bd7 {[%emt 0:01:17]} Ne7 {[%emt 0:02:32]} 23. Qa1 {[%emt 0:00:09][%cal Og5h7] [#] aiming for Nxh7!} d4 {[%emt 0:03:29]} 24. Nxh7 {[%emt 0:05:30]} Kxh7 {[%emt 0:00:23]} 25. Qxd4 {[%emt 0:00:06] Threatens to win with Rh3+.} Be5 {[%emt 0:00:14]} 26. Qh4+ {[%emt 0:00:06]} Kg7 {[%emt 0:00:02] And now ...Rh8 would win.} 27. Qxe7 {[%emt 0:00:09]} Qc5 {[%emt 0:00:31] An uneventful encounter.   Weighted Error Value: White=0.03 (flawless) /Black=0.00 (flawless) .  OK:         	White=7     	Black=14     Best:        	White=2     	---        Strong:       	White=1     	---} 1/2-1/2

[Event "7th Sharjah Masters 2024"]
[Site "Sharjah"]
[Date "2024.05.16"]
[Round "3.15"]
[White "Artemiev, Vladislav"]
[Black "Pranav, V."]
[Result "1/2-1/2"]
[ECO "C87"]
[WhiteElo "2705"]
[BlackElo "2587"]
[Annotator "TA"]
[PlyCount "65"]
[EventDate "2024.05.13"]
[EventType "swiss"]
[EventCountry "UAE"]
[SourceTitle "playchess.com"]
[Source "ChessBase"]
[SourceQuality "1"]
[TimeControl "5400+30"]

{[%evp 15,65,44,51,40,49,43,39,26,29,16,48,12,31,35,83,75,85,85,77,89,79,79,106,110,153,141,217,220,249,128,200,71,43,73,83,0,0,0,0,0,0,0,0,0,0,0,0,0,0,0,0,0]} 1. e4 {[%emt 0:00:13]} e5 {[%emt 0:00:08]} 2. Nf3 {[%emt 0:00:21]} Nc6 {[%emt 0:00:07]} 3. Bb5 {[%emt 0:00:37]} a6 {[%emt 0:00:13]} 4. Ba4 {[%emt 0:00:21]} Nf6 {[%emt 0:00:10]} 5. O-O {[%emt 0:00:24]} Be7 {[%emt 0:00:08]} 6. Re1 {[%emt 0:07:09]} d6 {[%emt 0:00:23]} 7. c3 {[%emt 0:02:01]} Bg4 {[%emt 0:01:07]} 8. d3 {[%emt 0:06:27]} Nd7 {[%emt 0:11:04]} 9. Be3 {[%emt 0:26:22]} h6 {[%emt 0:20:19]} 10. Nbd2 {[%emt 0:01:28]} Bg5 {[%emt 0:01:00]} 11. Bxc6 {[%emt 0:20:56] White is slightly better.} bxc6 {[%emt 0:00:07]} 12. d4 {[%emt 0:01:22]} c5 {[%emt 0:14:23]} 13. Bxg5 {[%emt 0:09:28]} hxg5 {[%emt 0:00:21]} 14. h3 {[%emt 0:00:13][%cal Bh2h3,Bh3g4,Bg4g5][%mdl 32]} Bxf3 {[%emt 0:04:59]} (14... Bh5 $14) 15. Nxf3 $16 {[%emt 0:00:08]} Qf6 {[%emt 0:02:47][%cal Og5g4]} 16. Qa4 {[%emt 0:11:09]} g4 {[%emt 0:08:16]} 17. hxg4 {[%emt 0:00:20]} Qh6 {[%emt 0:08:41][%csl Gh8][%cal Rh6h1]} 18. Kf1 {[%emt 0:00:08] White is more active.} Rb8 {[%emt 0:00:07]} 19. b3 $1 {[%emt 0:02:10]} Qf4 {[%emt 0:05:00]} (19... Qh1+ $2 20. Ke2 Qxg2 21. Rg1 $18) 20. dxe5 {[%emt 0:01:45]} (20. Qxa6 exd4 (20... Qxg4 21. Qc6 $11) (20... Rh1+ 21. Ke2 $16) 21. Kg1 Qxg4 $11 (21... Qh6 22. Kf1 $11)) (20. Kg1 $6 exd4 21. cxd4 (21. Qxa6 dxc3 22. e5 Qh6 $11) 21... Ke7 $16) 20... dxe5 {[%emt 0:06:14] [#]} (20... Rb6 $16 21. g5 Kd8) 21. g5 $1 $18 {[%emt 0:03:02][%cal Of1g1]} ({Resist} 21. Qxa6 $6 Rh6 (21... Qxg4 22. Qc6 $16) (21... Rh1+ 22. Ke2 $16) 22. Qc4 Qxg4 $16) (21. Kg1 Qh6 22. Kf1 (22. Nxe5 $2 Qh1#) 22... Qe6 $16) 21... Rb6 {[%emt 0:00:34]} 22. Ke2 {[%emt 0:03:20]} (22. Kg1 $18 Ke7 23. Rad1) 22... Rd6 {[%emt 0:01:16]} (22... Qg4 $16 {was called for.} 23. Rad1 Ke7) 23. Rh1 {[%emt 0:01:21]} (23. Rad1 $18 {and White stays clearly on top. Black must now prevent Rxd6.} Ke7 24. g3) 23... Rxh1 $16 {[%emt 0:00:09]} 24. Rxh1 {[%emt 0:00:05]} Qg4 {[%emt 0:00:16] [#]} 25. g3 {[%emt 0:01:25]} (25. g6 $1 $16) 25... Rd3 $1 $11 {[%emt 0:00:29] The position is equal.} 26. Rh8+ {[%emt 0:00:24]} (26. Kxd3 $2 {is the wrong capture.} Qxf3+ 27. Kd2 Qxh1 $19) 26... Ke7 {[%emt 0:00:06]} 27. Kxd3 {[%emt 0:00:15]} Qxf3+ {[%emt 0:00:04][%mdl 4096] Endgame. KQR-KQN} 28. Kc2 {[%emt 0:00:47]} Qxf2+ {[%emt 0:00:04]} 29. Kb1 {[%emt 0:00:12] Strongly threatening Rh1.} Qe1+ {[%emt 0:01:41]} 30. Kb2 {[%emt 0:00:29] Hoping for Rh2.} Qd2+ {[%emt 0:00:30]} 31. Kb1 {[%emt 0:00:24] Rh1 would now be deadly.} Qd1+ {[%emt 0:00:19]} 32. Kb2 {[%emt 0:00:06][%cal Oh8h2] And now Rh2! would win.} Qd2+ {[%emt 0:00:10]} 33. Kb1 {[%emt 0:00:05] Weighted Error Value: White=0.23 (precise) /Black=0.16 (very precise) .  Mistake:       	White=3     	Black=3      Inaccurate:     	White=1     	Black=3      OK:         	White=10    	Black=10     Best:        	White=5     	Black=1      Strong:       	White=1     	Black=1} 1/2-1/2

[Event "7th Sharjah Masters 2024"]
[Site "Sharjah"]
[Date "2024.05.16"]
[Round "3.16"]
[White "Vokhidov, Shamsiddin"]
[Black "Sevian, Samuel"]
[Result "1/2-1/2"]
[ECO "C02"]
[WhiteElo "2592"]
[BlackElo "2699"]
[Annotator "TA"]
[PlyCount "38"]
[EventDate "2024.05.13"]
[EventType "swiss"]
[EventCountry "UAE"]
[SourceTitle "playchess.com"]
[Source "ChessBase"]
[SourceQuality "1"]
[TimeControl "5400+30"]

{[%evp 25,38,0,0,0,0,-13,-17,-22,-18,-20,-18,-35,-4,-39,-40]} 1. e4 {[%emt 0:00:04]} e6 {[%emt 0:00:09]} 2. d4 {[%emt 0:00:10]} d5 {[%emt 0:00:09]} 3. e5 {[%emt 0:00:27]} c5 {[%emt 0:00:08]} 4. c3 {[%emt 0:00:04]} Nc6 {[%emt 0:00:11]} 5. Nf3 {[%emt 0:00:03]} Qb6 {[%emt 0:00:31]} 6. a3 {[%emt 0:03:24]} Bd7 {[%emt 0:01:52]} 7. b4 {[%emt 0:02:24]} cxd4 {[%emt 0:01:45]} 8. cxd4 {[%emt 0:00:48]} Rc8 {[%emt 0:00:13]} 9. Be3 {[%emt 0:05:18]} Nh6 {[%emt 0:01:06]} 10. Bd3 {[%emt 0:00:41]} Ng4 {[%emt 0:01:01]} 11. O-O {[%emt 0:01:45]} Be7 {[%emt 0:00:42]} 12. Nbd2 {[%emt 0:05:57]} Nxe3 {[%emt 0:01:08]} 13. fxe3 {[%emt 0:01:14]} Nb8 {[%emt 0:00:06]} 14. Qe2 {[%emt 0:00:23]} Rc3 {[%emt 0:01:11]} 15. Rfc1 {[%emt 0:06:26]} Rxc1+ {[%emt 0:01:30]} 16. Rxc1 {[%emt 0:00:36]} a5 $1 {[%emt 0:00:48]} 17. bxa5 {[%emt 0:01:06]} Qxa5 {[%emt 0:00:34]} 18. Rb1 {[%emt 0:00:13]} b6 {[%emt 0:26:56][%cal Oe8g8]} 19. Qd1 {[%emt 0:11:47]} O-O {[%emt 0:14:21] Weighted Error Value: White=0.13 (very precise) /Black=0.08 (flawless) .  Inaccurate:     	White=1     	Black=1      OK:         	White=1     	Black=3      Strong:       	---       	Black=1} 1/2-1/2